[Event "Australian-ch 2020"]
[Site "Kogarah"]
[Date "2020.01.05"]
[Round "4.7"]
[White "Kethro, Michael"]
[Black "Parle, Hughston"]
[Result "1-0"]
[ECO "E92"]
[WhiteElo "2093"]
[BlackElo "2057"]
[Annotator "NA RC"]
[PlyCount "77"]
[EventDate "2020.01.02"]
[EventType "swiss"]
[EventCountry "AUS"]
[SourceTitle "playchess.com"]
[Source "ChessBase"]
[SourceQuality "1"]
[TimeControl "40/5400+30:1800+30"]

1. d4 {[%emt 0:01:19]} Nf6 {[%emt 0:00:24]} 2. c4 {[%emt 0:00:32]} g6 {[%emt 0:01:14]} 3. Nc3 {[%emt 0:00:11]} Bg7 {[%emt 0:00:07]} 4. e4 {[%emt 0:00:32]} d6 {[%emt 0:00:07]} 5. Nf3 {[%emt 0:00:15]} O-O {[%emt 0:00:31]} 6. Be2 {[%emt 0:00:13]} e5 {[%emt 0:00:22]} 7. Be3 {[%emt 0:00:54]} Nc6 {[%emt 0:06:06]} 8. d5 {[%emt 0:01:16]} Ne7 {[%emt 0:00:29]} 9. Nd2 {[%emt 0:00:20]} Nd7 {[%emt 0:03:01]} 10. b4 {[%emt 0:04:03]} f5 {[%emt 0:00:39]} 11. f3 $1 {[%emt 0:00:37]} Nf6 {[%emt 0:22:36]} 12. c5 {[%emt 0:16:59]} h5 {[%emt 0:08:01] E92: King's Indian: Classical: 6 Be2 e5: 7 dxe5, 7 Be3 and Petrosian System without 7...Nbd7} 13. Nc4 {[%emt 0:14:24]} fxe4 {[%emt 0:04:49]} 14. fxe4 {[%emt 0:02:22]} Ng4 {[%emt 0:00:20]} 15. Bxg4 {[%emt 0:02:38]} Bxg4 {[%emt 0:00:05]} 16. Qd2 {[%emt 0:00:55]} Nc8 $146 {[%emt 0:38:31]} ({Predecessor:} 16... Bf6 17. O-O Nc8 18. Rf2 Bd7 19. Raf1 Rf7 20. c6 bxc6 21. dxc6 {1-0 (31) Wells,P (2494)-Colmenares,A (2075) Lausanne 2004}) 17. a4 {[%emt 0:19:08]} h4 {[%emt 0:02:19]} 18. h3 {[%emt 0:04:57]} Bh5 {[%emt 0:00:16]} 19. Rf1 {[%emt 0:02:57]} dxc5 {[%emt 0:03:33]} (19... Bf6 $142 20. Kf2 Rf7) 20. bxc5 {[%emt 0:04:11]} b6 {[%emt 0:00:25]} (20... g5 $142 21. Bxg5 Rxf1+ 22. Kxf1 Qf8+ 23. Qf2 Qxf2+ 24. Kxf2 Bf8) 21. Rxf8+ {[%emt 0:02:28]} Bxf8 {[%emt 0:02:11]} 22. d6 {[%emt 0:03:35]} Nxd6 {[%emt 0:03:57]} 23. cxd6 {[%emt 0:01:34]} cxd6 {[%emt 0:00:01]} 24. Bg5 {[%emt 0:01:41]} Qc7 {[%emt 0:01:15]} 25. Qd5+ {[%emt 0:01:22]} Kh7 {[%emt 0:00:00]} 26. Nb5 {[%emt 0:01:16]} Qc5 {[%emt 0:00:40]} 27. Qxc5 {[%emt 0:03:19]} dxc5 {[%emt 0:00:05]} 28. Nc7 {[%emt 0:02:27]} Rb8 {[%emt 0:00:47]} 29. Nd5 {[%emt 0:01:45]} Bg7 {[%emt 0:00:40]} 30. Ra2 {[%emt 0:00:58]} b5 {[%emt 0:00:45]} 31. axb5 {[%emt 0:00:37]} Rxb5 {[%emt 0:00:02]} 32. Rxa7 {[%emt 0:02:23]} Rb1+ {[%emt 0:00:01] [#]} 33. Kf2 {[%emt 0:00:31]} Kg8 {[%emt 0:00:16]} 34. Ra8+ {[%emt 0:01:27]} Kf7 {[%emt 0:00:03]} 35. Ra7+ {[%emt 0:00:20]} Kg8 {[%emt 0:00:03]} 36. Nf6+ {[%emt 0:00:52]} Bxf6 {[%emt 0:00:24]} 37. Bxf6 {[%emt 0:00:18]} Rc1 {[%emt 0:00:52]} 38. Nxe5 {[%emt 0:00:33]} c4 {[%emt 0:00:18]} 39. Ra8+ {[%emt 0:00:11]} 1-0

[Event "Australian-ch 2020"]
[Site "Kogarah"]
[Date "2020.01.05"]
[Round "4.9"]
[White "Bayaca, Sterling"]
[Black "Plant, John Stuart"]
[Result "0-1"]
[ECO "C41"]
[WhiteElo "1994"]
[BlackElo "1993"]
[Annotator "NA"]
[PlyCount "62"]
[EventDate "2020.01.02"]
[EventType "swiss"]
[EventCountry "AUS"]
[SourceTitle "playchess.com"]
[Source "ChessBase"]
[SourceQuality "1"]
[TimeControl "40/5400+30:1800+30"]

1. e4 {[%emt 0:00:00]} d6 {[%emt 0:00:00]} 2. d4 {[%emt 0:00:00]} Nf6 {[%emt 0:00:00]} 3. Nc3 {[%emt 0:00:25]} e5 4. Nf3 {[%emt 0:00:30]} Nbd7 {[%emt 0:00:45]} 5. Bc4 {[%emt 0:00:30]} Be7 {[%emt 0:00:30]} 6. a4 {[%emt 0:00:30]} O-O {[%emt 0:00:30]} 7. O-O {[%emt 0:00:30]} c6 {[%emt 0:00:30]} 8. a5 {[%emt 0:00:30]} Qc7 {[%emt 0:00:30]} 9. Bb3 {[%emt 0:00:30]} Rb8 {[%emt 0:00:30]} 10. Re1 {[%emt 0:00:30]} b5 {[%emt 0:00:30]} 11. axb6 {[%emt 0:00:30]} axb6 {[%emt 0:00:30]} 12. d5 {[%emt 0:00:30]} Nc5 {[%emt 0:00:30]} 13. Ba2 {[%emt 0:00:30]} cxd5 {[%emt 0:00:30]} 14. Nxd5 {[%emt 0:00:30]} Nxd5 {[%emt 0:00:30]} 15. Bxd5 {[%emt 0:00:30]} Be6 {[%emt 0:00:30]} 16. Be3 {[%emt 0:00:30]} Bxd5 {[%emt 0:00:30]} 17. Qxd5 {[%emt 0:00:30]} Nd7 {[%emt 0:00:30]} 18. Qd3 {[%emt 0:00:30]} Ra8 {[%emt 0:00:30]} 19. Nd2 {[%emt 0:00:30]} Rfc8 {[%emt 0:00:30]} 20. c3 {[%emt 0:00:30]} Qc6 {[%emt 0:00:30]} 21. f3 {[%emt 0:00:30]} b5 {[%emt 0:00:30]} 22. Nf1 {[%emt 0:00:30]} Nc5 {[%emt 0:00:30]} 23. Bxc5 {[%emt 0:00:30]} dxc5 {[%emt 0:00:30]} 24. Ne3 {[%emt 0:00:30]} c4 {[%emt 0:00:30]} 25. Qd5 {[%emt 0:00:30]} Rxa1 {[%emt 0:00:30]} 26. Rxa1 {[%emt 0:00:30]} Qb6 {[%emt 0:00:30]} 27. Kf2 {[%emt 0:00:30]} Bc5 {[%emt 0:00:30]} 28. Qd2 {[%emt 0:00:30]} Rd8 {[%emt 0:00:30]} 29. Qe2 {[%emt 0:00:30]} f5 {[%emt 0:00:30]} 30. exf5 {[%emt 0:00:30]} Bxe3+ {[%emt 0:00:30]} 31. Qxe3 {[%emt 0:00:30]} Rd2+ {[%emt 0:00:30]} 0-1

[Event "Australian-ch 2020"]
[Site "Kogarah"]
[Date "2020.01.06"]
[Round "5.5"]
[White "O`Chee, Kevin"]
[Black "Hu, Jason"]
[Result "1/2-1/2"]
[ECO "B11"]
[WhiteElo "2156"]
[BlackElo "2159"]
[Annotator "ChessBase"]
[PlyCount "137"]
[EventDate "2020.01.02"]
[EventType "swiss"]
[EventCountry "AUS"]
[SourceTitle "playchess.com"]
[Source "ChessBase"]
[SourceQuality "1"]
[TimeControl "40/5400+30:1800+30"]

1. e4 {[%emt 0:00:00]} c6 {[%emt 0:00:00]} 2. Nf3 {[%emt 0:02:05]} d5 {[%emt 0:00:00]} 3. Nc3 {[%emt 0:00:05]} Bg4 {[%emt 0:00:00]} 4. h3 {[%emt 0:00:05]} Bxf3 {[%emt 0:00:00]} 5. Qxf3 {[%emt 0:00:06]} Nf6 {[%emt 0:00:00]} 6. d3 {[%emt 0:01:44]} e6 {[%emt 0:00:02]} 7. a3 {[%emt 0:01:08]} Nbd7 {[%emt 0:02:57]} 8. g3 {[%emt 0:00:45]} Bc5 {[%emt 0:00:58]} 9. Bg2 {[%emt 0:00:31]} O-O {[%emt 0:00:11]} 10. O-O {[%emt 0:00:20]} b5 {[%emt 0:02:25]} 11. Rd1 {[%emt 0:01:27]} Qb6 {[%emt 0:04:04]} 12. Qe2 {[%emt 0:01:43]} Bd4 {[%emt 0:03:06]} 13. Nb1 {[%emt 0:02:37]} Rfc8 {[%emt 0:06:58]} 14. c3 {[%emt 0:02:40]} Bc5 {[%emt 0:01:36]} 15. Nd2 {[%emt 0:02:32]} a5 {[%emt 0:02:02]} 16. d4 {[%emt 0:01:16]} Bf8 {[%emt 0:00:37]} 17. e5 {[%emt 0:03:16]} Ne8 {[%emt 0:03:24]} 18. Nf3 {[%emt 0:00:30]} c5 {[%emt 0:00:30]} 19. Qd3 {[%emt 0:02:48]} cxd4 {[%emt 0:02:46]} 20. cxd4 {[%emt 0:00:27]} b4 {[%emt 0:09:12]} 21. Ng5 {[%emt 0:04:21]} f5 {[%emt 0:59:42]} 22. Bxd5 {[%emt 1:10:34]} exd5 {[%emt 0:00:00]} 23. Qxf5 {[%emt 0:00:00]} Ndf6 {[%emt 0:00:00]} 24. exf6 {[%emt 0:00:00]} Nxf6 {[%emt 0:00:00]} 25. Ne6 {[%emt 0:00:00]} bxa3 {[%emt 0:00:00]} 26. bxa3 {[%emt 0:00:00]} Re8 {[%emt 0:00:00]} 27. Nxf8 {[%emt 0:00:00]} Rxf8 {[%emt 0:00:00]} 28. Bg5 {[%emt 0:00:00]} Qd6 {[%emt 0:00:00]} 29. Bf4 {[%emt 0:00:00]} Qa6 {[%emt 0:00:00]} 30. Rac1 {[%emt 0:00:00]} Rf7 {[%emt 0:00:00]} 31. Qd3 {[%emt 0:00:00]} Qe6 {[%emt 0:00:00]} 32. Kg2 {[%emt 0:00:00]} Ne4 {[%emt 0:00:00]} 33. f3 {[%emt 0:00:00]} Rxf4 {[%emt 0:00:00]} 34. gxf4 {[%emt 0:00:00]} Qg6+ {[%emt 0:00:00]} 35. Kf1 {[%emt 0:00:00]} Ng3+ {[%emt 0:00:00]} 36. Ke1 {[%emt 0:00:00]} Re8+ {[%emt 0:00:00]} 37. Kd2 {[%emt 0:00:00]} Qf6 {[%emt 0:00:40]} 38. Rc5 {[%emt 0:00:00]} Qxf4+ {[%emt 0:01:01]} 39. Kc2 {[%emt 0:00:00]} Nf5 {[%emt 0:02:09]} 40. Rd2 {[%emt 0:00:00]} Ne3+ {[%emt 0:01:45]} 41. Kb3 {[%emt 0:17:43]} Nc4 {[%emt 0:21:17]} 42. Rxc4 {[%emt 0:00:00]} dxc4+ {[%emt 0:00:09]} 43. Qxc4+ {[%emt 0:00:00]} Kh8 {[%emt 0:00:05]} 44. Qc3 {[%emt 0:00:00]} Rb8+ {[%emt 0:04:24]} 45. Ka2 {[%emt 0:00:00]} Qf5 {[%emt 0:01:38]} 46. Rb2 {[%emt 0:00:00]} Qd5+ {[%emt 0:01:56]} 47. Ka1 {[%emt 0:00:00]} Re8 {[%emt 0:00:36]} 48. Qd3 {[%emt 0:00:00]} h6 {[%emt 0:02:26]} 49. Rb5 {[%emt 0:00:00]} Qc6 {[%emt 0:04:16]} 50. Rc5 {[%emt 0:00:00]} Qd7 {[%emt 0:01:25]} 51. Rxa5 {[%emt 0:00:00]} Qxh3 {[%emt 0:00:21]} 52. Rc5 {[%emt 0:00:00]} Qg2 {[%emt 0:00:18]} 53. Rc1 {[%emt 0:00:44]} Qg5 {[%emt 0:00:10]} 54. Rd1 {[%emt 0:02:40]} Qd5 {[%emt 0:00:18]} 55. f4 {[%emt 0:00:24]} Ra8 {[%emt 0:00:15]} 56. Qe3 {[%emt 0:01:37]} Qd6 57. Rd3 {[%emt 0:00:30]} Rb8 58. d5 {[%emt 0:00:30]} Qf6+ 59. Qd4 {[%emt 0:00:30]} Qd6 60. Rg3 {[%emt 0:00:30]} Rb7 61. Qe5 {[%emt 0:00:30]} Qb6 62. Qe8+ {[%emt 0:00:30]} Kh7 63. Qe4+ {[%emt 0:00:30]} Kh8 64. Rg2 {[%emt 0:00:30]} Qb3 65. Qe8+ {[%emt 0:00:30]} Kh7 66. Qg6+ {[%emt 0:00:30]} Kh8 67. Qe8+ {[%emt 0:00:30]} Kh7 68. Qg6+ {[%emt 0:00:30]} Kh8 69. Qe8+ {[%emt 0:00:30]} 1/2-1/2

[Event "Australian-ch 2020"]
[Site "Kogarah"]
[Date "2020.01.06"]
[Round "5.6"]
[White "Zhang, Jilin"]
[Black "Kethro, Michael"]
[Result "1/2-1/2"]
[ECO "B48"]
[WhiteElo "2237"]
[BlackElo "2093"]
[Annotator "RC"]
[PlyCount "53"]
[EventDate "2020.01.02"]
[EventType "swiss"]
[EventCountry "AUS"]
[SourceTitle "playchess.com"]
[Source "ChessBase"]
[SourceQuality "1"]
[TimeControl "40/5400+30:1800+30"]

1. e4 {[%emt 0:00:00]} c5 {[%emt 0:00:00]} 2. Nf3 {[%emt 0:00:00]} e6 {[%emt 0:00:09]} 3. d4 {[%emt 0:00:00]} cxd4 {[%emt 0:00:09]} 4. Nxd4 {[%emt 0:00:00]} Nc6 {[%emt 0:00:12]} 5. Nc3 {[%emt 0:00:17]} Qc7 {[%emt 0:00:37]} 6. Be3 {[%emt 0:00:29]} a6 {[%emt 0:00:35]} 7. a3 {[%emt 0:00:23]} b5 {[%emt 0:02:17]} 8. Nxc6 {[%emt 0:00:38]} Qxc6 {[%emt 0:01:21]} 9. Qd4 {[%emt 0:09:30]} Bb7 {[%emt 0:02:49]} 10. Be2 {[%emt 0:03:08]} Rc8 {[%emt 0:06:22]} 11. O-O-O {[%emt 0:11:01]} Nf6 {[%emt 0:21:33]} 12. Bf3 {[%emt 0:16:10]} Bxa3 {[%emt 0:17:48]} 13. e5 {[%emt 0:03:29]} Nd5 {[%emt 0:04:06]} 14. Bxd5 {[%emt 0:11:32]} exd5 {[%emt 0:01:05]} 15. Rd3 {[%emt 0:03:35]} b4 {[%emt 0:12:47]} 16. bxa3 {[%emt 0:01:38]} bxc3 {[%emt 0:02:20]} 17. Qb4 {[%emt 0:00:16]} a5 {[%emt 0:10:50]} 18. Qd6 {[%emt 0:03:13]} Qxd6 {[%emt 0:02:15]} 19. exd6 {[%emt 0:00:05]} O-O {[%emt 0:00:28]} 20. Bd4 {[%emt 0:04:21]} f6 {[%emt 0:06:22]} 21. Re1 {[%emt 0:01:38]} Rfe8 {[%emt 0:02:19]} 22. Re7 {[%emt 0:01:08]} Rxe7 {[%emt 0:02:43]} 23. dxe7 {[%emt 0:00:01]} Kf7 {[%emt 0:00:24]} 24. Re3 {[%emt 0:00:08]} d6 {[%emt 0:01:42]} 25. g3 {[%emt 0:19:24]} Re8 {[%emt 0:00:27]} 26. Bxc3 {[%emt 0:05:02]} a4 {[%emt 0:00:31]} 27. Bb4 {[%emt 0:02:09]} 1/2-1/2

[Event "Australian-ch 2020"]
[Site "Kogarah"]
[Date "2020.01.06"]
[Round "5.7"]
[White "Plant, John Stuart"]
[Black "Puccini, Jack"]
[Result "0-1"]
[ECO "B21"]
[WhiteElo "1993"]
[BlackElo "2265"]
[Annotator "RC"]
[PlyCount "102"]
[EventDate "2020.01.02"]
[EventType "swiss"]
[EventCountry "AUS"]
[SourceTitle "playchess.com"]
[Source "ChessBase"]
[SourceQuality "1"]
[TimeControl "40/5400+30:1800+30"]

1. e4 {[%emt 0:00:00]} c5 {[%emt 0:00:00]} 2. f4 {[%emt 0:00:00]} d5 {[%emt 0:00:21]} 3. d3 {[%emt 0:00:11]} Nc6 {[%emt 0:02:15]} 4. Nf3 {[%emt 0:00:21]} g6 {[%emt 0:03:05]} 5. Be2 {[%emt 0:00:47]} Bg7 {[%emt 0:02:36]} 6. c3 {[%emt 0:00:58]} e6 {[%emt 0:03:50]} 7. Be3 {[%emt 0:01:22]} d4 {[%emt 0:03:53]} 8. cxd4 {[%emt 0:01:55]} cxd4 {[%emt 0:04:04]} 9. Bd2 {[%emt 0:01:19]} Nf6 {[%emt 0:01:54]} 10. h3 {[%emt 0:03:22]} O-O {[%emt 0:04:02]} 11. O-O {[%emt 0:03:14]} b6 {[%emt 0:04:22]} 12. Na3 {[%emt 0:01:45]} Bb7 {[%emt 0:01:36]} 13. Qe1 {[%emt 0:03:13]} Nxe4 {[%emt 0:12:36]} 14. dxe4 {[%emt 0:02:41]} d3 {[%emt 0:00:07]} 15. e5 {[%emt 0:04:03]} dxe2 {[%emt 0:01:22]} 16. Qxe2 {[%emt 0:00:02]} Nd4 {[%emt 0:11:33]} 17. Nxd4 Qxd4+ {[%emt 0:00:05]} 18. Be3 {[%emt 0:02:08]} Qe4 {[%emt 0:01:38]} 19. Qf2 {[%emt 0:01:30]} f6 {[%emt 0:04:08]} 20. Rfe1 {[%emt 0:07:32]} fxe5 {[%emt 0:06:31]} 21. Bxb6 {[%emt 0:02:56]} Qc6 {[%emt 0:01:34]} 22. Bc5 {[%emt 0:05:11]} exf4 {[%emt 0:03:09]} 23. Nc4 {[%emt 0:03:40]} Rf5 {[%emt 0:02:02]} 24. Na5 {[%emt 0:03:46]} Qxg2+ {[%emt 0:01:21]} 25. Qxg2 {[%emt 0:00:28]} Bxg2 {[%emt 0:00:05]} 26. Kxg2 {[%emt 0:04:44]} Rxc5 {[%emt 0:00:07]} 27. Nb3 {[%emt 0:00:34]} Rc2+ {[%emt 0:00:29]} 28. Kf3 {[%emt 0:00:16]} Rxb2 {[%emt 0:00:26]} 29. Nc5 {[%emt 0:01:20]} Rh2 {[%emt 0:02:09]} 30. Rad1 {[%emt 0:00:40]} Rxh3+ {[%emt 0:08:10]} 31. Kxf4 {[%emt 0:00:34]} Rc8 {[%emt 0:01:17]} 32. Kg4 {[%emt 0:03:38]} Ra3 {[%emt 0:00:10]} 33. Ne4 {[%emt 0:01:50]} Rf8 {[%emt 0:02:20]} 34. Rf1 {[%emt 0:13:40]} Rf5 {[%emt 0:02:21]} 35. Rd8+ {[%emt 0:01:17]} Kf7 {[%emt 0:01:23]} 36. Rd7+ {[%emt 0:08:05]} Kf8 {[%emt 0:00:28]} 37. Rg1 {[%emt 0:03:18]} h5+ {[%emt 0:01:34]} 38. Kh4 {[%emt 0:00:07]} Ra4 {[%emt 0:00:10]} 39. Rb1 {[%emt 0:03:18]} Rxe4+ {[%emt 0:02:01]} 40. Kh3 {[%emt 0:00:02]} Re3+ {[%emt 0:00:43]} 41. Kg2 {[%emt 0:30:09]} Re2+ {[%emt 0:30:17]} 42. Kh1 {[%emt 0:00:15]} Be5 {[%emt 0:01:34]} 43. Kg1 {[%emt 0:01:02]} Rf7 {[%emt 0:00:54]} 44. Rd3 {[%emt 0:00:30]} Kg7 {[%emt 0:00:18]} 45. a4 {[%emt 0:00:15]} g5 {[%emt 0:00:34]} 46. a5 {[%emt 0:00:08]} g4 {[%emt 0:00:35]} 47. a6 {[%emt 0:00:06]} h4 {[%emt 0:00:06]} 48. Kh1 {[%emt 0:00:40]} h3 {[%emt 0:00:22]} 49. Kg1 {[%emt 0:03:18]} Rg2+ {[%emt 0:00:35]} 50. Kh1 {[%emt 0:00:06]} Rgf2 {[%emt 0:00:24]} 51. Rdd1 {[%emt 0:01:00]} g3 {[%emt 0:00:08]} 0-1

[Event "Australian-ch 2020"]
[Site "Kogarah"]
[Date "2020.01.06"]
[Round "5.9"]
[White "Lo, Willis"]
[Black "McGowan, Cameron"]
[Result "1-0"]
[ECO "E68"]
[WhiteElo "2108"]
[BlackElo "2221"]
[Annotator "ChessBase"]
[PlyCount "147"]
[EventDate "2020.01.02"]
[EventType "swiss"]
[EventCountry "AUS"]
[SourceTitle "playchess.com"]
[Source "ChessBase"]
[SourceQuality "1"]
[TimeControl "40/5400+30:1800+30"]

1. c4 {[%emt 0:00:00]} Nf6 {[%emt 0:00:00]} 2. g3 {[%emt 0:00:01]} g6 {[%emt 0:00:00]} 3. Bg2 {[%emt 0:00:30]} Bg7 {[%emt 0:00:30]} 4. Nc3 {[%emt 0:00:30]} O-O {[%emt 0:00:30]} 5. d4 {[%emt 0:00:30]} d6 {[%emt 0:00:30]} 6. Nf3 {[%emt 0:00:30]} Nbd7 {[%emt 0:00:30]} 7. O-O {[%emt 0:00:30]} e5 {[%emt 0:00:30]} 8. e4 {[%emt 0:00:30]} exd4 {[%emt 0:00:30]} 9. Nxd4 {[%emt 0:00:30]} Re8 {[%emt 0:00:30]} 10. h3 {[%emt 0:00:30]} a6 {[%emt 0:00:30]} 11. Be3 {[%emt 0:00:30]} Rb8 {[%emt 0:00:30]} 12. b3 {[%emt 0:00:30]} c5 {[%emt 0:00:30]} 13. Nde2 {[%emt 0:00:30]} b5 {[%emt 0:00:30]} 14. Qxd6 {[%emt 0:00:30]} b4 {[%emt 0:00:30]} 15. Na4 {[%emt 0:00:30]} Nxe4 {[%emt 0:00:30]} 16. Bxe4 {[%emt 0:00:30]} Bxa1 {[%emt 0:00:30]} 17. Rxa1 {[%emt 0:00:30]} Rxe4 {[%emt 0:00:30]} 18. Nxc5 {[%emt 0:00:30]} Re8 {[%emt 0:00:30]} 19. Rd1 {[%emt 0:00:30]} Qe7 {[%emt 0:00:30]} 20. Qxe7 {[%emt 0:00:30]} Rxe7 {[%emt 0:00:30]} 21. Nf4 {[%emt 0:00:30]} Nxc5 {[%emt 0:00:30]} 22. Bxc5 {[%emt 0:00:30]} Rd7 {[%emt 0:00:30]} 23. Nd5 {[%emt 0:00:30]} Kg7 {[%emt 0:00:30]} 24. Bd4+ {[%emt 0:00:30]} f6 {[%emt 0:00:30]} 25. Bxf6+ {[%emt 0:00:30]} Kf7 {[%emt 0:00:30]} 26. Be5 {[%emt 0:00:30]} Rbb7 {[%emt 0:00:30]} 27. g4 {[%emt 0:00:30]} Rd8 {[%emt 0:00:30]} 28. c5 {[%emt 0:00:30]} Rb5 {[%emt 0:00:30]} 29. Bd6 {[%emt 0:00:30]} Bb7 {[%emt 0:00:30]} 30. Ne3 {[%emt 0:00:30]} Bc6 {[%emt 0:00:30]} 31. f4 {[%emt 0:00:30]} a5 {[%emt 0:00:30]} 32. Rd4 {[%emt 0:00:30]} Kg8 {[%emt 0:00:30]} 33. Nc4 {[%emt 0:00:30]} Be8 {[%emt 0:00:30]} 34. Ne5 {[%emt 0:00:30]} Rc8 {[%emt 0:00:30]} 35. Nd3 {[%emt 0:00:30]} Rb7 {[%emt 0:00:30]} 36. Kf2 {[%emt 0:00:30]} Ra8 {[%emt 0:00:30]} 37. Ne5 {[%emt 0:00:30]} Rc8 {[%emt 0:00:30]} 38. f5 {[%emt 0:00:30]} Kg7 {[%emt 0:00:30]} 39. Rf4 {[%emt 0:00:30]} gxf5 {[%emt 0:00:30]} 40. gxf5 {[%emt 0:00:30]} Kf6 {[%emt 0:00:30]} 41. Ng4+ {[%emt 0:30:30]} Kf7 {[%emt 0:30:30]} 42. f6 {[%emt 0:00:30]} h5 {[%emt 0:00:30]} 43. Nh6+ {[%emt 0:00:30]} Ke6 {[%emt 0:00:30]} 44. Ng8 {[%emt 0:00:30]} Rb5 {[%emt 0:00:30]} 45. f7 {[%emt 0:00:30]} Bxf7 {[%emt 0:00:30]} 46. Rf6+ {[%emt 0:00:30]} Kd7 {[%emt 0:00:30]} 47. Rxf7+ {[%emt 0:00:30]} Ke6 {[%emt 0:00:30]} 48. Re7+ {[%emt 0:00:30]} Kd5 {[%emt 0:00:30]} 49. Nf6+ {[%emt 0:00:30]} Kd4 {[%emt 0:00:30]} 50. Nxh5 {[%emt 0:00:30]} Kc3 {[%emt 0:00:30]} 51. Nf4 {[%emt 0:00:30]} Kb2 {[%emt 0:00:30]} 52. Re2+ {[%emt 0:00:30]} Kb1 {[%emt 0:00:30]} 53. Nd3 {[%emt 0:00:30]} Rb7 {[%emt 0:00:30]} 54. h4 {[%emt 0:00:30]} Rf7+ {[%emt 0:00:30]} 55. Nf4 {[%emt 0:00:30]} Rh8 {[%emt 0:00:30]} 56. Kg3 {[%emt 0:00:30]} Rg7+ {[%emt 0:00:30]} 57. Kh3 {[%emt 0:00:30]} Rgh7 {[%emt 0:00:30]} 58. h5 {[%emt 0:00:30]} Rc8 {[%emt 0:00:30]} 59. Kg4 {[%emt 0:00:30]} Rg8+ {[%emt 0:00:30]} 60. Ng6 {[%emt 0:00:30]} Rf7 {[%emt 0:00:30]} 61. Kg5 {[%emt 0:00:30]} Rf1 {[%emt 0:00:30]} 62. c6 {[%emt 0:00:30]} Rc1 {[%emt 0:00:30]} 63. c7 {[%emt 0:00:30]} Rc6 {[%emt 0:00:30]} 64. Be5 {[%emt 0:00:30]} Re8 {[%emt 0:00:30]} 65. h6 {[%emt 0:00:30]} Rg8 {[%emt 0:00:30]} 66. h7 {[%emt 0:00:30]} Rgxg6+ {[%emt 0:00:30]} 67. Kf5 {[%emt 0:00:30]} Rh6 {[%emt 0:00:30]} 68. Rh2 {[%emt 0:00:30]} Rxh7 {[%emt 0:00:30]} 69. Rxh7 {[%emt 0:00:30]} Kxa2 {[%emt 0:00:30]} 70. Rh8 {[%emt 0:00:30]} Kxb3 {[%emt 0:00:30]} 71. c8=Q {[%emt 0:00:30]} Rxc8 {[%emt 0:00:30]} 72. Rxc8 {[%emt 0:00:30]} a4 {[%emt 0:00:30]} 73. Bd6 {[%emt 0:00:30]} a3 {[%emt 0:00:30]} 74. Rb8 {[%emt 0:00:30]} 1-0

[Event "Australian-ch 2020"]
[Site "Kogarah"]
[Date "2020.01.06"]
[Round "5.10"]
[White "Huynh, Arthur"]
[Black "Bayaca, Sterling"]
[Result "1-0"]
[ECO "E04"]
[WhiteElo "2136"]
[BlackElo "1994"]
[Annotator "ChessBase"]
[PlyCount "77"]
[EventDate "2020.01.02"]
[EventType "swiss"]
[EventCountry "AUS"]
[SourceTitle "playchess.com"]
[Source "ChessBase"]
[SourceQuality "1"]
[TimeControl "40/5400+30:1800+30"]

1. d4 d5 2. c4 e6 3. g3 Nf6 4. Bg2 dxc4 5. Nf3 Bd7 6. Ne5 Bc6 7. Nxc6 Nxc6 8. e3 Qd7 9. O-O Nd5 10. Qe2 O-O-O 11. Qxc4 h5 12. Nc3 h4 13. Bd2 hxg3 14. hxg3 f5 15. Rfc1 g5 16. Nxd5 exd5 17. Qa4 Qh7 18. Rxc6 bxc6 19. Qxc6 Kb8 20. Qb5+ Kc8 21. Rc1 Qd7 22. Rc6 Rh7 23. Ba5 Qe8 24. Bxd5 Rxd5 25. Qxd5 Qh5 26. Rxc7+ Rxc7 27. Qa8+ Kd7 28. Bxc7 Qd1+ 29. Kg2 Qc2 30. Qd8+ Kc6 31. d5+ Kb7 32. Qb8+ Ka6 33. Qc8+ Kb5 34. Qb7+ Kc4 35. Qc6+ Bc5 36. d6 f4 37. Qa6+ Kd5 38. Qb7+ Kc4 39. Qb3+ 1-0

[Event "Australian-ch 2020"]
[Site "Kogarah"]
[Date "2020.01.07"]
[Round "6.4"]
[White "Kethro, Michael"]
[Black "Bjelobrk, Igor"]
[Result "0-1"]
[ECO "E08"]
[WhiteElo "2093"]
[BlackElo "2403"]
[Annotator "RC"]
[PlyCount "122"]
[EventDate "2020.01.02"]
[EventType "swiss"]
[EventCountry "AUS"]
[SourceTitle "playchess.com"]
[Source "ChessBase"]
[SourceQuality "1"]
[TimeControl "40/5400+30:1800+30"]

1. d4 {[%emt 0:00:00]} Nf6 {[%emt 0:00:58]} 2. c4 {[%emt 0:00:00]} e6 {[%emt 0:00:06]} 3. g3 {[%emt 0:00:26]} d5 {[%emt 0:00:12]} 4. Nf3 {[%emt 0:00:15]} Bb4+ {[%emt 0:00:19]} 5. Bd2 {[%emt 0:00:29]} Be7 {[%emt 0:00:08]} 6. Bg2 {[%emt 0:00:13]} O-O {[%emt 0:00:17]} 7. O-O {[%emt 0:00:22]} Nbd7 {[%emt 0:00:10]} 8. Qc2 {[%emt 0:01:51]} Ne4 {[%emt 0:00:16]} 9. Bf4 {[%emt 0:03:06]} c6 {[%emt 0:01:46]} 10. Nfd2 {[%emt 0:05:33]} g5 {[%emt 0:01:07]} 11. Nxe4 {[%emt 0:03:54]} gxf4 {[%emt 0:01:09]} 12. Nec3 {[%emt 0:09:15]} Bd6 {[%emt 0:13:54]} 13. Nd2 {[%emt 0:18:37]} Qg5 {[%emt 0:08:28]} 14. Nf3 {[%emt 0:12:28]} Qh6 {[%emt 0:00:15]} 15. gxf4 {[%emt 0:12:03]} Bxf4 {[%emt 0:00:27]} 16. e3 {[%emt 0:00:24]} Bd6 {[%emt 0:01:18]} 17. e4 {[%emt 0:00:47]} dxe4 {[%emt 0:22:25]} 18. Qxe4 {[%emt 0:01:56]} Kh8 {[%emt 0:10:59]} 19. Rfe1 {[%emt 0:07:03]} Rg8 {[%emt 0:02:44]} 20. Ne5 {[%emt 0:05:34]} Qg7 {[%emt 0:01:36]} 21. Nxd7 {[%emt 0:04:29]} Bxd7 {[%emt 0:00:16]} 22. Re3 {[%emt 0:04:27]} f5 {[%emt 0:03:24]} 23. Qf3 {[%emt 0:01:25]} Raf8 {[%emt 0:01:11]} 24. Kh1 {[%emt 0:02:10]} Rf6 {[%emt 0:01:36]} 25. Ree1 {[%emt 0:04:03]} Rh6 {[%emt 0:07:06]} 26. Bh3 {[%emt 0:01:10]} Qxd4 {[%emt 0:02:50]} 27. Rad1 {[%emt 0:00:23]} Qf4 {[%emt 0:00:31]} 28. Qxf4 {[%emt 0:00:43]} Bxf4 {[%emt 0:00:05]} 29. Ne2 {[%emt 0:00:45]} Rxh3 {[%emt 0:14:52]} 30. Nxf4 {[%emt 0:00:20]} Rf3 {[%emt 0:00:08]} 31. Rxd7 {[%emt 0:00:44]} Rxf4 {[%emt 0:00:06]} 32. Rg1 {[%emt 0:00:28]} Rxf2 {[%emt 0:01:00]} 33. Rxg8+ {[%emt 0:00:31]} Kxg8 {[%emt 0:00:06]} 34. Rxb7 {[%emt 0:00:05]} f4 {[%emt 0:01:25]} 35. Kg1 {[%emt 0:00:48]} Re2 {[%emt 0:00:28]} 36. Kf1 {[%emt 0:00:37]} Rxh2 {[%emt 0:00:24]} 37. Re7 {[%emt 0:00:29]} Rxb2 {[%emt 0:01:19]} 38. Rxe6 {[%emt 0:00:31]} Rxa2 {[%emt 0:00:08]} 39. Rxc6 {[%emt 0:00:19]} Kg7 {[%emt 0:00:29]} 40. Rc7+ {[%emt 0:00:43]} Kg6 {[%emt 0:00:07]} 41. c5 {[%emt 0:05:53]} h5 {[%emt 0:14:47]} 42. c6 {[%emt 0:11:51]} h4 {[%emt 0:01:12]} 43. Rc8 {[%emt 0:06:09]} h3 {[%emt 0:12:01]} 44. c7 {[%emt 0:06:35]} h2 {[%emt 0:00:20]} 45. Rg8+ {[%emt 0:00:40]} Kf6 {[%emt 0:00:08]} 46. Rh8 {[%emt 0:01:34]} Rc2 {[%emt 0:00:11]} 47. Rxh2 {[%emt 0:00:28]} Rxc7 {[%emt 0:00:04]} 48. Rh5 {[%emt 0:00:20]} Rc1+ {[%emt 0:04:54]} 49. Ke2 {[%emt 0:00:40]} Ra1 {[%emt 0:00:08]} 50. Kf3 {[%emt 0:00:36]} Ra4 {[%emt 0:00:05]} 51. Rb5 {[%emt 0:00:41]} a5 {[%emt 0:00:08]} 52. Rh5 {[%emt 0:00:28]} Ke6 {[%emt 0:00:40]} 53. Rg5 {[%emt 0:00:28]} Kd6 {[%emt 0:00:17]} 54. Rh5 {[%emt 0:00:38]} Kc6 {[%emt 0:00:04]} 55. Rg5 {[%emt 0:00:29]} Kb6 {[%emt 0:00:05]} 56. Rf5 {[%emt 0:00:31]} Rc4 {[%emt 0:00:33]} 57. Rf8 {[%emt 0:00:31]} a4 {[%emt 0:00:16]} 58. Ra8 {[%emt 0:00:28]} Kc5 {[%emt 0:00:12]} 59. Ra7 {[%emt 0:00:31]} Kb4 {[%emt 0:00:08]} 60. Rb7+ {[%emt 0:00:28]} Kc3 {[%emt 0:00:07]} 61. Ra7 {[%emt 0:00:31]} Kb3 {[%emt 0:00:09]} 0-1